[Event "Early-Titled-Tuesday-Blitz-January-30-2024"]
[Site "Chess.com"]
[Date "2024.01.30"]
[Round "6"]
[White "MBA_CHESS_2021"]
[Black "wild3000"]
[Result "1-0"]
[WhiteElo "2243"]
[BlackElo "2375"]
[TimeControl "180+1"]
[EndTime "9:11:17 PST"]
[Termination "MBA_CHESS_2021 won on time"]

1. d4 {[%clk 0:02:59]} 1... d5 {[%clk 0:02:51]} 2. c4 {[%clk 0:02:57.3]} 2... e6
{[%clk 0:02:51.3]} 3. Nc3 {[%clk 0:02:57.5]} 3... Nf6 {[%clk 0:02:52.1]} 4. Nf3
{[%clk 0:02:57.4]} 4... Be7 {[%clk 0:02:50.6]} 5. Bf4 {[%clk 0:02:56.8]} 5...
O-O {[%clk 0:02:51.5]} 6. e3 {[%clk 0:02:57.1]} 6... a6 {[%clk 0:02:51.8]} 7. c5
{[%clk 0:02:56.8]} 7... Nc6 {[%clk 0:02:51.5]} 8. h3 {[%clk 0:02:54.6]} 8... b6
{[%clk 0:02:49.3]} 9. cxb6 {[%clk 0:02:46.9]} 9... cxb6 {[%clk 0:02:49.1]} 10.
Bd3 {[%clk 0:02:47.1]} 10... Bb7 {[%clk 0:02:48.3]} 11. Rc1 {[%clk 0:02:46.6]}
11... b5 {[%clk 0:02:47.7]} 12. O-O {[%clk 0:02:44.4]} 12... Rc8 {[%clk
0:02:47.8]} 13. a3 {[%clk 0:02:43.8]} 13... Bd6 {[%clk 0:02:43.5]} 14. Bg5
{[%clk 0:02:42.4]} 14... h6 {[%clk 0:02:43.1]} 15. Bh4 {[%clk 0:02:37.6]} 15...
g5 {[%clk 0:02:43.1]} 16. Bg3 {[%clk 0:02:37.4]} 16... Bxg3 {[%clk 0:02:42.2]}
17. fxg3 {[%clk 0:02:37.4]} 17... Qd6 {[%clk 0:02:41.6]} 18. Rc2 {[%clk
0:02:09.8]} 18... Qxg3 {[%clk 0:02:40.2]} 19. Rcf2 {[%clk 0:02:08.7]} 19... Nd7
{[%clk 0:02:33.3]} 20. Qe2 {[%clk 0:02:05.6]} 20... b4 {[%clk 0:02:32.4]} 21.
axb4 {[%clk 0:02:03.4]} 21... Nxb4 {[%clk 0:02:33.3]} 22. Bb1 {[%clk 0:02:03.4]}
22... a5 {[%clk 0:02:30.7]} 23. Re1 {[%clk 0:01:55.4]} 23... Ba6 {[%clk
0:02:26.7]} 24. Qd2 {[%clk 0:01:55.3]} 24... Kg7 {[%clk 0:02:19.9]} 25. Nh2
{[%clk 0:01:54.6]} 25... Nf6 {[%clk 0:02:18.3]} 26. Rf3 {[%clk 0:01:51.5]} 26...
Qd6 {[%clk 0:02:16.7]} 27. Qf2 {[%clk 0:01:48.6]} 27... Nd7 {[%clk 0:02:11.5]}
28. e4 {[%clk 0:01:35.5]} 28... dxe4 {[%clk 0:02:09]} 29. Nxe4 {[%clk
0:01:35.1]} 29... Qe7 {[%clk 0:02:08.7]} 30. h4 {[%clk 0:01:21.3]} 30... f6
{[%clk 0:02:02.9]} 31. Ng3 {[%clk 0:01:07.4]} 31... Nd5 {[%clk 0:01:53.3]} 32.
Nf5+ {[%clk 0:01:06.5]} 32... exf5 {[%clk 0:01:52.7]} 33. Rxe7+ {[%clk
0:01:05.5]} 33... Nxe7 {[%clk 0:01:53.1]} 34. Rc3 {[%clk 0:00:55.3]} 34... Rxc3
{[%clk 0:01:50.2]} 35. bxc3 {[%clk 0:00:54.9]} 35... Rb8 {[%clk 0:01:50.2]} 36.
Qa2 {[%clk 0:00:54.2]} 36... a4 {[%clk 0:01:42]} 37. hxg5 {[%clk 0:00:53.7]}
37... hxg5 {[%clk 0:01:41.6]} 38. Bc2 {[%clk 0:00:53.4]} 38... Bb5 {[%clk
0:01:28.5]} 39. Nf3 {[%clk 0:00:51.1]} 39... Nb6 {[%clk 0:01:19.2]} 40. Qe6
{[%clk 0:00:49.5]} 40... Rb7 {[%clk 0:01:15.1]} 41. Nd2 {[%clk 0:00:43]} 41...
a3 {[%clk 0:01:09.3]} 42. Qb3 {[%clk 0:00:38]} 42... Ba4 {[%clk 0:01:02.6]} 43.
Qa2 {[%clk 0:00:35.7]} 43... Bxc2 {[%clk 0:01:02.6]} 44. Qxc2 {[%clk 0:00:35.8]}
44... Ra7 {[%clk 0:01:02.8]} 45. Qa2 {[%clk 0:00:35.9]} 45... Nc6 {[%clk
0:00:55.4]} 46. Nb1 {[%clk 0:00:33]} 46... f4 {[%clk 0:00:49.5]} 47. Nxa3 {[%clk
0:00:30.5]} 47... Ne7 {[%clk 0:00:46.7]} 48. Qb3 {[%clk 0:00:30.4]} 48... Nd7
{[%clk 0:00:46]} 49. c4 {[%clk 0:00:28.6]} 49... Nf5 {[%clk 0:00:45.5]} 50. d5
{[%clk 0:00:27.9]} 50... Nc5 {[%clk 0:00:44.1]} 51. Qb6 {[%clk 0:00:24.8]} 51...
Rxa3 {[%clk 0:00:43.4]} 52. Qxc5 {[%clk 0:00:24.8]} 52... Ra1+ {[%clk
0:00:42.7]} 53. Kf2 {[%clk 0:00:24.9]} 53... Ra2+ {[%clk 0:00:41.7]} 54. Ke1
{[%clk 0:00:24.4]} 54... Ne3 {[%clk 0:00:40.7]} 55. Qe7+ {[%clk 0:00:22.3]}
55... Kg6 {[%clk 0:00:40.5]} 56. Qe8+ {[%clk 0:00:21.8]} 56... Kg7 {[%clk
0:00:38.1]} 57. d6 {[%clk 0:00:21.4]} 57... Nxg2+ {[%clk 0:00:38]} 58. Kd1
{[%clk 0:00:21.7]} 58... Ne3+ {[%clk 0:00:37.6]} 59. Kc1 {[%clk 0:00:22.1]}
59... Rc2+ {[%clk 0:00:37.3]} 60. Kb1 {[%clk 0:00:22.3]} 60... Rxc4 {[%clk
0:00:36.3]} 61. d7 {[%clk 0:00:22.7]} 61... Rd4 {[%clk 0:00:34.3]} 62. d8=Q
{[%clk 0:00:22.5]} 62... Rxd8 {[%clk 0:00:34.3]} 63. Qxd8 {[%clk 0:00:23.1]}
63... Kg6 {[%clk 0:00:34.2]} 64. Kc1 {[%clk 0:00:22.9]} 64... g4 {[%clk
0:00:31.3]} 65. Kd2 {[%clk 0:00:23.3]} 65... g3 {[%clk 0:00:31.2]} 66. Qg8+
{[%clk 0:00:23.3]} 66... Kf5 {[%clk 0:00:31.1]} 67. Ke2 {[%clk 0:00:23.9]} 67...
g2 {[%clk 0:00:27.7]} 68. Kf3 {[%clk 0:00:23.8]} 68... Ke5 {[%clk 0:00:25]} 69.
Qe8+ {[%clk 0:00:23.5]} 69... Kf5 {[%clk 0:00:25.2]} 70. Qe4+ {[%clk 0:00:22.9]}
70... Kg5 {[%clk 0:00:25.4]} 71. Qxf4+ {[%clk 0:00:23.6]} 71... Kg6 {[%clk
0:00:25.3]} 72. Qe4+ {[%clk 0:00:22.5]} 72... Nf5 {[%clk 0:00:25]} 73. Kxg2
{[%clk 0:00:20.5]} 73... Kg5 {[%clk 0:00:25.3]} 74. Qd5 {[%clk 0:00:16.3]} 74...
Kf4 {[%clk 0:00:24.5]} 75. Qd2+ {[%clk 0:00:15.8]} 75... Kg4 {[%clk 0:00:23.2]}
76. Qe2+ {[%clk 0:00:15.1]} 76... Kg5 {[%clk 0:00:23.2]} 77. Qd2+ {[%clk
0:00:12.9]} 77... Kg4 {[%clk 0:00:22.8]} 78. Qb4+ {[%clk 0:00:12.8]} 78... Kg5
{[%clk 0:00:21.7]} 79. Kh3 {[%clk 0:00:12.5]} 79... Nh6 {[%clk 0:00:19.9]} 80.
Qd2+ {[%clk 0:00:10.1]} 80... Kg6 {[%clk 0:00:18.7]} 81. Qg2+ {[%clk 0:00:10.3]}
81... Kf7 {[%clk 0:00:16.9]} 82. Kh4 {[%clk 0:00:08.3]} 82... Nf5+ {[%clk
0:00:16.1]} 83. Kh5 {[%clk 0:00:08.7]} 83... Ng7+ {[%clk 0:00:15.8]} 84. Kh6
{[%clk 0:00:08.9]} 84... Nf5+ {[%clk 0:00:16]} 85. Kh7 {[%clk 0:00:09.5]} 85...
Ne7 {[%clk 0:00:13.1]} 86. Qe4 {[%clk 0:00:08.4]} 86... f5 {[%clk 0:00:05.4]}
87. Qe5 {[%clk 0:00:08.5]} 87... Kf8 {[%clk 0:00:04.7]} 88. Qe6 {[%clk
0:00:06.6]} 88... Ke8 {[%clk 0:00:02.6]} 89. Kg7 {[%clk 0:00:06.5]} 89... Kd8
{[%clk 0:00:02.7]} 90. Kf7 {[%clk 0:00:06.6]} 90... Nc8 {[%clk 0:00:02.9]} 91.
Qd5+ {[%clk 0:00:02.5]} 91... Kc7 {[%clk 0:00:02.6]} 92. Qc5+ {[%clk 0:00:02.4]}
92... Kd7 {[%clk 0:00:02.5]} 93. Qd5+ {[%clk 0:00:02.2]} 93... Kc7 {[%clk
0:00:01.2]} 94. Qc4+ {[%clk 0:00:02.4]} 94... Kd7 {[%clk 0:00:01.2]} 95. Qd3+
{[%clk 0:00:02.7]} 95... Kc7 {[%clk 0:00:01.5]} 96. Qc2+ {[%clk 0:00:03]} 96...
Kd7 {[%clk 0:00:01.7]} 97. Qxf5+ {[%clk 0:00:03.3]} 97... Kc7 {[%clk 0:00:01.3]}
98. Qa5+ {[%clk 0:00:03.3]} 1-0

[Event "Early-Titled-Tuesday-Blitz-January-30-2024"]
[Site "Chess.com"]
[Date "2024.01.30"]
[Round "6"]
[White "LiadCuba"]
[Black "manitodeplomo"]
[Result "1/2-1/2"]
[WhiteElo "2448"]
[BlackElo "2669"]
[TimeControl "180+1"]
[EndTime "9:11:32 PST"]
[Termination "Game drawn by repetition"]

1. d4 {[%clk 0:03:00.9]} 1... g6 {[%clk 0:02:52]} 2. c4 {[%clk 0:03:01]} 2...
Bg7 {[%clk 0:02:52.3]} 3. Nc3 {[%clk 0:03:01.4]} 3... d6 {[%clk 0:02:50.6]} 4.
e4 {[%clk 0:03:00.3]} 4... Nf6 {[%clk 0:02:50.7]} 5. Be2 {[%clk 0:02:59.5]} 5...
O-O {[%clk 0:02:50.7]} 6. Be3 {[%clk 0:02:59.4]} 6... c5 {[%clk 0:02:48.1]} 7.
d5 {[%clk 0:02:52.1]} 7... e6 {[%clk 0:02:46.2]} 8. dxe6 {[%clk 0:02:47.8]} 8...
Bxe6 {[%clk 0:02:42.8]} 9. h3 {[%clk 0:02:48.2]} 9... Nc6 {[%clk 0:02:41.7]} 10.
Nf3 {[%clk 0:02:48.4]} 10... Qb6 {[%clk 0:02:34.3]} 11. Qc2 {[%clk 0:02:31.8]}
11... Nd4 {[%clk 0:02:27.3]} 12. Bxd4 {[%clk 0:02:24.2]} 12... cxd4 {[%clk
0:02:28.2]} 13. Nd5 {[%clk 0:02:24.5]} 13... Nxd5 {[%clk 0:02:21.5]} 14. exd5
{[%clk 0:02:20.8]} 14... Bf5 {[%clk 0:02:16.4]} 15. Qd2 {[%clk 0:02:16.3]} 15...
d3 {[%clk 0:02:08.7]} 16. Bxd3 {[%clk 0:02:16.2]} 16... Bxd3 {[%clk 0:02:08.5]}
17. Qxd3 {[%clk 0:02:15.9]} 17... Rfe8+ {[%clk 0:02:09]} 18. Kf1 {[%clk
0:02:13.7]} 18... Qxb2 {[%clk 0:02:07.9]} 19. Rb1 {[%clk 0:02:09.4]} 19... Qxa2
{[%clk 0:02:07.6]} 20. Rxb7 {[%clk 0:02:05.6]} 20... a5 {[%clk 0:02:02]} 21. g4
{[%clk 0:01:58.6]} 21... Rec8 {[%clk 0:01:41.3]} 22. Nd2 {[%clk 0:01:31.4]}
22... Rcb8 {[%clk 0:01:24.7]} 23. Rxb8+ {[%clk 0:01:30.1]} 23... Rxb8 {[%clk
0:01:25.6]} 24. Kg2 {[%clk 0:01:30.6]} 24... a4 {[%clk 0:01:21.5]} 25. Re1
{[%clk 0:01:18.7]} 25... a3 {[%clk 0:01:12.6]} 26. c5 {[%clk 0:01:18.8]} 26...
dxc5 {[%clk 0:01:03.5]} 27. d6 {[%clk 0:01:19.7]} 27... Bd4 {[%clk 0:01:02.3]}
28. Ne4 {[%clk 0:00:45.5]} 28... Qb3 {[%clk 0:00:50.8]} 29. Qxb3 {[%clk
0:00:33.7]} 29... Rxb3 {[%clk 0:00:49]} 30. d7 {[%clk 0:00:33.9]} 30... Rb8
{[%clk 0:00:47.2]} 31. Nxc5 {[%clk 0:00:33.1]} 31... Rf8 {[%clk 0:00:22.1]} 32.
Nb3 {[%clk 0:00:20.6]} 32... Bf6 {[%clk 0:00:19.6]} 33. Re2 {[%clk 0:00:19.6]}
33... Kg7 {[%clk 0:00:16.8]} 34. Na5 {[%clk 0:00:14]} 34... Ra8 {[%clk
0:00:13.4]} 35. Nc6 {[%clk 0:00:13.5]} 35... a2 {[%clk 0:00:13]} 36. d8=Q {[%clk
0:00:03.2]} 36... Bxd8 {[%clk 0:00:11.9]} 37. Rxa2 {[%clk 0:00:03.2]} 37... Rxa2
{[%clk 0:00:10.3]} 38. Nxd8 {[%clk 0:00:04.1]} 38... Ra6 {[%clk 0:00:09.5]} 39.
Nb7 {[%clk 0:00:04.4]} 39... Rc6 {[%clk 0:00:09.3]} 40. Na5 {[%clk 0:00:04.5]}
40... Rc5 {[%clk 0:00:07.9]} 41. Nb3 {[%clk 0:00:04.8]} 41... Rd5 {[%clk
0:00:08.4]} 42. Nc1 {[%clk 0:00:04.3]} 42... Kf6 {[%clk 0:00:08.1]} 43. Ne2
{[%clk 0:00:04.7]} 43... Ra5 {[%clk 0:00:08.6]} 44. Nc3 {[%clk 0:00:04.8]} 44...
Kg5 {[%clk 0:00:08.3]} 45. Ne4+ {[%clk 0:00:03.7]} 45... Kh4 {[%clk 0:00:07.6]}
46. Nd6 {[%clk 0:00:03.4]} 46... Ra7 {[%clk 0:00:06.6]} 47. Nc4 {[%clk
0:00:03.3]} 47... h5 {[%clk 0:00:05.9]} 48. gxh5 {[%clk 0:00:02.9]} 48... Kxh5
{[%clk 0:00:06.4]} 49. Ne5 {[%clk 0:00:02.8]} 49... Kh4 {[%clk 0:00:05.5]} 50.
Nf3+ {[%clk 0:00:02.7]} 50... Kh5 {[%clk 0:00:05]} 51. Ne5 {[%clk 0:00:03.6]}
51... Kh6 {[%clk 0:00:05.4]} 52. Kg3 {[%clk 0:00:03.7]} 52... Kg7 {[%clk
0:00:05.6]} 53. f3 {[%clk 0:00:03.9]} 53... Ra1 {[%clk 0:00:05.2]} 54. Ng4
{[%clk 0:00:03.8]} 54... f6 {[%clk 0:00:05.5]} 55. Nf2 {[%clk 0:00:03.3]} 55...
Kf7 {[%clk 0:00:05.7]} 56. Ne4 {[%clk 0:00:03.5]} 56... Ke6 {[%clk 0:00:06.1]}
57. Nc5+ {[%clk 0:00:03.9]} 57... Kf5 {[%clk 0:00:05.9]} 58. Nd3 {[%clk
0:00:04.8]} 58... Kg5 {[%clk 0:00:05.5]} 59. Nc5 {[%clk 0:00:04.7]} 59... f5
{[%clk 0:00:04.9]} 60. Nb3 {[%clk 0:00:04.5]} 60... Rb1 {[%clk 0:00:04]} 61. Nd2
{[%clk 0:00:04.6]} 61... Rb8 {[%clk 0:00:04.9]} 62. Nc4 {[%clk 0:00:04.4]} 62...
Ra8 {[%clk 0:00:05.3]} 63. Nd6 {[%clk 0:00:04.5]} 63... Ra1 {[%clk 0:00:05.3]}
64. h4+ {[%clk 0:00:04.8]} 64... Kf6 {[%clk 0:00:06.2]} 65. Nc4 {[%clk
0:00:05.3]} 65... Re1 {[%clk 0:00:04.8]} 66. Nd2 {[%clk 0:00:05.3]} 66... Re8
{[%clk 0:00:05.2]} 67. Nc4 {[%clk 0:00:05.5]} 67... Re6 {[%clk 0:00:05]} 68. Nd2
{[%clk 0:00:04.7]} 68... Rc6 {[%clk 0:00:05.5]} 69. Nb3 {[%clk 0:00:04.9]} 69...
Rc4 {[%clk 0:00:05.2]} 70. Nd2 {[%clk 0:00:05.1]} 70... Rb4 {[%clk 0:00:05.7]}
71. Nf1 {[%clk 0:00:05.4]} 71... Kg7 {[%clk 0:00:05.9]} 72. Kf2 {[%clk
0:00:05.6]} 72... Rxh4 {[%clk 0:00:04.5]} 73. Kg3 {[%clk 0:00:06.1]} 73... Ra4
{[%clk 0:00:05]} 74. Nd2 {[%clk 0:00:06.5]} 74... Kh6 {[%clk 0:00:05.2]} 75. Nb3
{[%clk 0:00:06.8]} 75... Rc4 {[%clk 0:00:05.1]} 76. Nd2 {[%clk 0:00:07.2]} 76...
Rb4 {[%clk 0:00:05.7]} 77. Nf1 {[%clk 0:00:07.3]} 77... Kg5 {[%clk 0:00:06]} 78.
Nd2 {[%clk 0:00:07.4]} 78... Kf6 {[%clk 0:00:05.5]} 79. f4 {[%clk 0:00:06.1]}
79... Kg7 {[%clk 0:00:05.3]} 80. Nf3 {[%clk 0:00:06.5]} 80... Kh6 {[%clk
0:00:05.8]} 81. Ne5 {[%clk 0:00:06.9]} 81... Kh5 {[%clk 0:00:05.9]} 82. Nf3
{[%clk 0:00:06.8]} 82... Rb3 {[%clk 0:00:06.3]} 83. Kg2 {[%clk 0:00:04.8]} 83...
Kg4 {[%clk 0:00:06.1]} 84. Nd4 {[%clk 0:00:05.7]} 84... Rb2+ {[%clk 0:00:05.5]}
85. Kg1 {[%clk 0:00:05.1]} 85... Kxf4 {[%clk 0:00:05.5]} 86. Ne6+ {[%clk
0:00:06]} 86... Kg4 {[%clk 0:00:05.4]} 87. Nc5 {[%clk 0:00:06.1]} 87... Rb1+
{[%clk 0:00:05.7]} 88. Kf2 {[%clk 0:00:06.3]} 88... Rb2+ {[%clk 0:00:06.1]} 89.
Kg1 {[%clk 0:00:05.6]} 89... Rb8 {[%clk 0:00:06.6]} 90. Nd3 {[%clk 0:00:05.9]}
90... Re8 {[%clk 0:00:06.3]} 91. Kf2 {[%clk 0:00:05.8]} 91... f4 {[%clk
0:00:06.4]} 92. Nc5 {[%clk 0:00:06.2]} 92... Kf5 {[%clk 0:00:06.4]} 93. Nd7
{[%clk 0:00:06.1]} 93... Re4 {[%clk 0:00:06.3]} 94. Nc5 {[%clk 0:00:06.3]} 94...
Re3 {[%clk 0:00:06.8]} 95. Nb7 {[%clk 0:00:05.8]} 95... g5 {[%clk 0:00:06.9]}
96. Nd6+ {[%clk 0:00:06.3]} 96... Kg4 {[%clk 0:00:06.6]} 97. Nc4 {[%clk
0:00:06.9]} 97... Rf3+ {[%clk 0:00:06.5]} 98. Kg2 {[%clk 0:00:07.1]} 98... Rc3
{[%clk 0:00:06.8]} 99. Ne5+ {[%clk 0:00:07.2]} 99... Kf5 {[%clk 0:00:06.9]} 100.
Nf7 {[%clk 0:00:08.1]} 100... Rc2+ {[%clk 0:00:06.8]} 101. Kf1 {[%clk
0:00:07.6]} 101... Rd2 {[%clk 0:00:07.3]} 102. Nh6+ {[%clk 0:00:07.7]} 102...
Ke4 {[%clk 0:00:07.2]} 103. Ng4 {[%clk 0:00:08.3]} 103... Kf3 {[%clk 0:00:07]}
104. Ne5+ {[%clk 0:00:08.7]} 104... Ke4 {[%clk 0:00:07.2]} 105. Ng4 {[%clk
0:00:08.7]} 105... Kf5 {[%clk 0:00:07.8]} 106. Nh6+ {[%clk 0:00:08.4]} 106...
Kg6 {[%clk 0:00:08.4]} 107. Ng4 {[%clk 0:00:09]} 107... Kh5 {[%clk 0:00:08.8]}
108. Ne5 {[%clk 0:00:09]} 108... Kh4 {[%clk 0:00:09.1]} 109. Nf3+ {[%clk
0:00:08.4]} 109... Kg3 {[%clk 0:00:09]} 110. Nxd2 {[%clk 0:00:09.3]} 110... g4
{[%clk 0:00:09.4]} 111. Ne4+ {[%clk 0:00:09.6]} 111... Kh3 {[%clk 0:00:08.9]}
112. Nf2+ {[%clk 0:00:08.9]} 112... Kg3 {[%clk 0:00:08.8]} 113. Ne4+ {[%clk
0:00:09]} 113... Kf3 {[%clk 0:00:09.6]} 114. Ng5+ {[%clk 0:00:09.4]} 114... Kg3
{[%clk 0:00:09.7]} 115. Ne4+ {[%clk 0:00:09.6]} 1/2-1/2

[Event "Early-Titled-Tuesday-Blitz-January-30-2024"]
[Site "Chess.com"]
[Date "2024.01.30"]
[Round "7"]
[White "BocharovD"]
[Black "spaski2004"]
[Result "1-0"]
[WhiteElo "2873"]
[BlackElo "2968"]
[TimeControl "180+1"]
[EndTime "9:13:39 PST"]
[Termination "BocharovD won by resignation"]

1. c4 {[%clk 0:03:00.9]} 1... d6 {[%clk 0:02:49.8]} 2. g3 {[%clk 0:02:56.5]}
2... e5 {[%clk 0:02:48.8]} 3. Bg2 {[%clk 0:02:56.8]} 3... Nc6 {[%clk 0:02:48.5]}
4. Nc3 {[%clk 0:02:57]} 4... Bd7 {[%clk 0:02:48.8]} 5. d3 {[%clk 0:02:56.5]}
5... g6 {[%clk 0:02:37.9]} 6. Rb1 {[%clk 0:02:55.5]} 6... Bg7 {[%clk 0:02:38.1]}
7. b4 {[%clk 0:02:54.8]} 7... a6 {[%clk 0:02:35.4]} 8. a4 {[%clk 0:02:53.4]}
8... Qc8 {[%clk 0:02:28.7]} 9. b5 {[%clk 0:02:35.6]} 9... axb5 {[%clk 0:02:24]}
10. axb5 {[%clk 0:02:36.5]} 10... Nd8 {[%clk 0:02:24.1]} 11. Nf3 {[%clk
0:02:31.1]} 11... Ne6 {[%clk 0:02:20.1]} 12. O-O {[%clk 0:02:27.5]} 1-0

[Event "Early-Titled-Tuesday-Blitz-January-30-2024"]
[Site "Chess.com"]
[Date "2024.01.30"]
[Round "7"]
[White "eightbyeightchess"]
[Black "jamengrand"]
[Result "0-1"]
[WhiteElo "2414"]
[BlackElo "2263"]
[TimeControl "180+1"]
[EndTime "9:14:18 PST"]
[Termination "jamengrand won by resignation"]

1. e4 {[%clk 0:03:00.9]} 1... e5 {[%clk 0:02:59.4]} 2. Nf3 {[%clk 0:03:00.7]}
2... Nc6 {[%clk 0:02:59.4]} 3. d4 {[%clk 0:03:00.7]} 3... exd4 {[%clk
0:02:59.4]} 4. c3 {[%clk 0:03:01.2]} 4... d5 {[%clk 0:02:58.2]} 5. exd5 {[%clk
0:03:01.3]} 5... Qxd5 {[%clk 0:02:58.4]} 6. cxd4 {[%clk 0:03:00.7]} 6... Bg4
{[%clk 0:02:58.3]} 7. Be2 {[%clk 0:03:00.7]} 7... Bb4+ {[%clk 0:02:57.9]} 8. Nc3
{[%clk 0:03:00.9]} 8... Bxf3 {[%clk 0:02:58.2]} 9. Bxf3 {[%clk 0:02:59.4]} 9...
Qc4 {[%clk 0:02:58.7]} 10. Qb3 {[%clk 0:02:58.1]} 10... Qxb3 {[%clk 0:02:56.6]}
11. axb3 {[%clk 0:02:55.4]} 11... Nge7 {[%clk 0:02:54.6]} 12. O-O {[%clk
0:02:51.6]} 12... Nxd4 {[%clk 0:02:50.6]} 13. Bxb7 {[%clk 0:02:46.2]} 13... Rb8
{[%clk 0:02:50.7]} 14. Be4 {[%clk 0:02:42.8]} 14... a5 {[%clk 0:02:48.5]} 15.
Bf4 {[%clk 0:02:24.9]} 15... Bxc3 {[%clk 0:02:48.7]} 16. bxc3 {[%clk 0:02:24.9]}
16... Ne2+ {[%clk 0:02:47.6]} 17. Kh1 {[%clk 0:02:23.5]} 17... Nxf4 {[%clk
0:02:48.5]} 18. Rxa5 {[%clk 0:02:23.4]} 18... O-O {[%clk 0:02:42.8]} 19. b4
{[%clk 0:02:23.2]} 19... Ne2 {[%clk 0:02:35.9]} 20. Re5 {[%clk 0:02:16.9]} 20...
Rfe8 {[%clk 0:02:36.2]} 21. Bxh7+ {[%clk 0:02:15.6]} 21... Kxh7 {[%clk
0:02:34.9]} 22. Rxe2 {[%clk 0:02:16.5]} 22... Nd5 {[%clk 0:02:34.3]} 23. Rc2
{[%clk 0:02:16.3]} 23... c5 {[%clk 0:02:31]} 24. b5 {[%clk 0:02:11.5]} 24... c4
{[%clk 0:02:29.9]} 25. Rb1 {[%clk 0:02:09.8]} 25... Rxb5 {[%clk 0:02:29.1]} 0-1

[Event "Early-Titled-Tuesday-Blitz-January-30-2024"]
[Site "Chess.com"]
[Date "2024.01.30"]
[Round "7"]
[White "RandomNoob04"]
[Black "josmito10"]
[Result "0-1"]
[WhiteElo "2573"]
[BlackElo "2777"]
[TimeControl "180+1"]
[EndTime "9:14:42 PST"]
[Termination "josmito10 won by resignation"]

1. e4 {[%clk 0:03:00.2]} 1... e6 {[%clk 0:02:59.9]} 2. d4 {[%clk 0:02:58.8]}
2... d5 {[%clk 0:03:00.3]} 3. e5 {[%clk 0:02:58.7]} 3... c5 {[%clk 0:03:00.6]}
4. c3 {[%clk 0:02:59.4]} 4... Nc6 {[%clk 0:03:00.8]} 5. Nf3 {[%clk 0:03:00]}
5... Nh6 {[%clk 0:03:01.5]} 6. Bd3 {[%clk 0:02:54.5]} 6... cxd4 {[%clk
0:02:58.4]} 7. cxd4 {[%clk 0:02:54.3]} 7... Nf5 {[%clk 0:02:59.1]} 8. Bc2 {[%clk
0:02:48.1]} 8... Nh4 {[%clk 0:02:58.9]} 9. Be3 {[%clk 0:02:45.9]} 9... Nxg2+
{[%clk 0:02:57.1]} 10. Kf1 {[%clk 0:02:43.5]} 10... Nxe3+ {[%clk 0:02:56.4]} 11.
fxe3 {[%clk 0:02:44.4]} 11... g6 {[%clk 0:02:55.9]} 12. Kg2 {[%clk 0:02:43.7]}
12... Bh6 {[%clk 0:02:55.8]} 13. Qe2 {[%clk 0:02:40.7]} 13... O-O {[%clk
0:02:56]} 14. Nc3 {[%clk 0:02:39.7]} 14... f6 {[%clk 0:02:56.1]} 15. exf6 {[%clk
0:02:16.4]} 15... Qxf6 {[%clk 0:02:57]} 16. Rhf1 {[%clk 0:02:16.2]} 16... Bd7
{[%clk 0:02:56.3]} 17. Kh1 {[%clk 0:02:15.2]} 17... Qe7 {[%clk 0:02:55.4]} 18.
Rg1 {[%clk 0:02:13.3]} 18... Kh8 {[%clk 0:02:54.5]} 19. Qg2 {[%clk 0:02:11.8]}
19... Rf6 {[%clk 0:02:54.2]} 20. Qh3 {[%clk 0:02:06.5]} 20... Bxe3 {[%clk
0:02:48.6]} 21. Rxg6 {[%clk 0:02:01.3]} 21... Rxg6 {[%clk 0:02:48.5]} 22. Bxg6
{[%clk 0:02:02.2]} 22... Rg8 {[%clk 0:02:49]} 23. Bd3 {[%clk 0:01:54.6]} 23...
Qg7 {[%clk 0:02:48.1]} 24. Nh4 {[%clk 0:01:40.9]} 24... Qg1+ {[%clk 0:02:47.1]}
0-1

[Event "Early-Titled-Tuesday-Blitz-January-30-2024"]
[Site "Chess.com"]
[Date "2024.01.30"]
[Round "7"]
[White "Irishchessman16"]
[Black "ilushka"]
[Result "0-1"]
[WhiteElo "2493"]
[BlackElo "2353"]
[TimeControl "180+1"]
[EndTime "9:15:03 PST"]
[Termination "ilushka won by resignation"]

1. Nf3 {[%clk 0:03:00.9]} 1... d5 {[%clk 0:02:59.7]} 2. b3 {[%clk 0:03:00.6]}
2... f6 {[%clk 0:02:56.4]} 3. d4 {[%clk 0:02:58.1]} 3... c5 {[%clk 0:02:54.5]}
4. e3 {[%clk 0:02:52]} 4... Nc6 {[%clk 0:02:53.6]} 5. c4 {[%clk 0:02:48.7]} 5...
cxd4 {[%clk 0:02:50.3]} 6. exd4 {[%clk 0:02:48.3]} 6... e6 {[%clk 0:02:49.2]} 7.
Be2 {[%clk 0:02:46.7]} 7... Bb4+ {[%clk 0:02:48.9]} 8. Bd2 {[%clk 0:02:46]} 8...
Bxd2+ {[%clk 0:02:46.5]} 9. Qxd2 {[%clk 0:02:45.4]} 9... Nge7 {[%clk 0:02:44.4]}
10. Nc3 {[%clk 0:02:45.2]} 10... O-O {[%clk 0:02:42.1]} 11. O-O {[%clk
0:02:44.1]} 11... b6 {[%clk 0:02:40.6]} 12. Rac1 {[%clk 0:02:40.4]} 12... Bb7
{[%clk 0:02:40.4]} 13. Rfd1 {[%clk 0:02:37.1]} 13... Rc8 {[%clk 0:02:39.1]} 14.
Bf1 {[%clk 0:02:36.5]} 14... Qd7 {[%clk 0:02:29.7]} 15. Ne1 {[%clk 0:02:28.6]}
15... Rfd8 {[%clk 0:02:28.6]} 16. Nc2 {[%clk 0:02:27.4]} 16... dxc4 {[%clk
0:02:25.2]} 17. bxc4 {[%clk 0:02:26.9]} 17... Na5 {[%clk 0:02:20.4]} 18. Ne3
{[%clk 0:02:26.9]} 18... Ba6 {[%clk 0:02:08.6]} 19. Nb5 {[%clk 0:02:02.9]} 19...
Nxc4 {[%clk 0:02:00.7]} 20. Nxc4 {[%clk 0:01:55.5]} 20... Bxb5 {[%clk
0:02:00.6]} 21. Qb4 {[%clk 0:01:54.8]} 21... Nd5 {[%clk 0:01:57.5]} 22. Qb3
{[%clk 0:01:54.9]} 22... Ba4 {[%clk 0:01:56.7]} 0-1

[Event "Early-Titled-Tuesday-Blitz-January-30-2024"]
[Site "Chess.com"]
[Date "2024.01.30"]
[Round "7"]
[White "Maftuna2303"]
[Black "akanga001"]
[Result "1-0"]
[WhiteElo "2420"]
[BlackElo "1976"]
[TimeControl "180+1"]
[EndTime "9:15:13 PST"]
[Termination "Maftuna2303 won by resignation"]

1. e4 {[%clk 0:02:57.9]} 1... e6 {[%clk 0:02:46.7]} 2. d4 {[%clk 0:02:57.5]}
2... d5 {[%clk 0:02:42.8]} 3. e5 {[%clk 0:02:55.3]} 3... c5 {[%clk 0:02:42.3]}
4. c3 {[%clk 0:02:55.6]} 4... Nc6 {[%clk 0:02:41.4]} 5. Nf3 {[%clk 0:02:55.7]}
5... Bd7 {[%clk 0:02:40]} 6. Bd3 {[%clk 0:02:47.8]} 6... a5 {[%clk 0:02:39.8]}
7. O-O {[%clk 0:02:47.6]} 7... Qb6 {[%clk 0:02:39.2]} 8. Bc2 {[%clk 0:02:46.7]}
8... cxd4 {[%clk 0:02:38.2]} 9. cxd4 {[%clk 0:02:46.5]} 9... Rc8 {[%clk
0:02:38.2]} 10. Nc3 {[%clk 0:02:45.7]} 10... Nb4 {[%clk 0:02:37.6]} 11. Bb1
{[%clk 0:02:44.3]} 11... Ne7 {[%clk 0:02:31.7]} 12. a3 {[%clk 0:02:44.2]} 12...
Na6 {[%clk 0:02:30.5]} 13. Bd3 {[%clk 0:02:40.1]} 13... Nf5 {[%clk 0:02:25.2]}
14. Na4 {[%clk 0:02:38.3]} 14... Bxa4 {[%clk 0:02:21]} 15. Qxa4+ {[%clk
0:02:37.5]} 15... Kd8 {[%clk 0:02:12.7]} 16. Bd2 {[%clk 0:02:36.6]} 16... Nc7
{[%clk 0:01:54.3]} 17. Bxa5 {[%clk 0:02:34.7]} 17... Qc6 {[%clk 0:01:54.3]} 18.
Qb3 {[%clk 0:02:26.5]} 18... Be7 {[%clk 0:01:41.5]} 19. Rac1 {[%clk 0:02:25.9]}
19... Qe8 {[%clk 0:01:30.3]} 20. Qxb7 {[%clk 0:02:20.3]} 20... Qd7 {[%clk
0:01:25.4]} 21. Bb5 {[%clk 0:02:16.5]} 1-0